fUSD/lending_fUSD_20250319
["ID","MTS","AMOUNT","RATE_DAILY","PERIOD"]
[356378236,1742343031571,-774.36135086,0.00026749,2]
[356378237,1742343031581,-65.19022276,0.00026849,2]
[356378238,1742343031624,-90.85977724,0.00026849,2]
[356378239,1742343031634,-487.99,0.00026849,2]
[356378240,1742343031644,-150.0,0.00027145,2]
[356378241,1742343031653,-250.0,0.00027145,2]
[356378242,1742343031665,-250.0,0.00028238,2]
[356378243,1742343031675,-235.42542503,0.00029117,2]
[356378244,1742343031685,-150.0,0.00029217,2]
[356378245,1742343031694,-150.0,0.00029534,2]
[356378246,1742343031704,-150.0,0.00029534,2]
[356378247,1742343031715,-250.0,0.00029534,2]
[356378248,1742343031725,-774.36135085,0.00030111,2]
[356378249,1742343031735,-150.0,0.00030587,2]
[356378250,1742343031744,-150.0,0.00031956,2]
[356378251,1742343031758,-235.42542502,0.00032454,2]
[356378252,1742343031768,-487.99,0.00032646,2]
[356378253,1742343031778,-200.0,0.0003316,120]
[356378254,1742343031787,-150.0,0.00033326,2]
[356378255,1742343031797,-241.16,0.00033472,2]
[356378256,1742343031807,-774.36135085,0.00033473,2]
[356378257,1742343031816,-150.0,0.00033494,2]
[356378258,1742343031825,-7620.82,0.00033552,2]
[356378259,1742343031834,-1000.0,0.00033573,2]
[356378260,1742343031847,-200.0,0.00033633,2]
[356378261,1742343031857,-250.0,0.00033673,2]
[356378262,1742343031865,-4000.0,0.0003381,30]
[356378263,1742343031875,-150.0,0.00033822,2]
[356378264,1742343031885,-294.3,0.00033887,2]
[356378265,1742343031895,-247.82,0.00033888,120]
[356378266,1742343031904,-151.6906,0.00034205,2]
[356378267,1742343031914,-150.0,0.00034205,2]
[356378268,1742343031923,-150.0,0.00034389,2]
[356378269,1742343031933,-150.0,0.00034696,2]
[356378270,1742343031942,-262.15858192,0.000349,7]
[356378271,1742343031952,-681.6398,0.00035129,7]
[356378272,1742343031961,-7620.82,0.00035229,2]
[356378273,1742343031972,-150.0,0.00035283,2]
[356378274,1742343031984,-1000.0,0.00035471,2]
[356378275,1742343031996,-808.8217,0.00035516,2]
[356378277,1742343032007,-519.86334569,0.00035606,2]
[356378278,1742343032016,-500.0,0.00035616,13]
[356378279,1742343032027,-179.0,0.00035616,13]
[356378280,1742343032037,-500.0,0.00035616,12]
[356378281,1742343032046,-508.14769439,0.00035616,12]
[356378282,1742343032056,-207.93107612,0.00035616,12]
[356378283,1742343032067,-506.5031068,0.00035616,12]
[356378284,1742343032078,-506.46818948,0.00035616,12]
[356378285,1742343032089,-500.0,0.00035616,12]
[356378286,1742343032099,-500.0,0.00035616,12]
[356378287,1742343032108,-500.0,0.00035616,12]
[356378288,1742343032119,-500.0,0.00035616,12]
[356378289,1742343032131,-693.44,0.00035616,12]
[356378290,1742343032143,-500.0,0.00035616,12]
[356378291,1742343032153,-562.61911113,0.00035616,42]
[356378292,1742343032165,-508.28505914,0.00035616,42]
[356378293,1742343032178,-50.16782973,0.00035616,42]
[356378294,1742343032188,-580.36,0.00035616,12]
[356378295,1742343032198,-500.0,0.00035616,12]
[356378296,1742343032208,-500.0,0.00035616,12]
[356378297,1742343032221,-446.72012665,0.00035616,12]
[356378298,1742343032234,-53.27987335,0.00035616,12]
[356378299,1742343032246,-500.0,0.00035616,12]
[356378300,1742343032257,-1077.96,0.00035616,12]
[356378301,1742343032268,-1228.01,0.00035616,12]
[356378302,1742343032278,-500.0,0.00035616,12]
[356378303,1742343032289,-500.0,0.00035616,12]
[356378304,1742343032299,-550.76,0.00035616,12]
[356378305,1742343032308,-500.0,0.00035616,12]
[356378306,1742343032318,-500.0,0.00035616,12]
[356378307,1742343032328,-500.0,0.00035616,12]
[356378308,1742343032338,-10000.0,0.00035616,2]
[356378309,1742343032348,-235.42542502,0.0003579,2]
[356378310,1742343032359,-500.0,0.0003589,12]
[356378311,1742343032369,-500.0,0.0003589,12]
[356378312,1742343032378,-500.0,0.0003589,12]
[356378313,1742343032388,-500.0,0.0003589,12]
[356378314,1742343032398,-693.44,0.0003589,12]
[356378315,1742343032408,-500.0,0.0003589,12]
[356378316,1742343032418,-580.36,0.0003589,12]
[356378317,1742343032428,-500.0,0.0003589,12]
[356378318,1742343032438,-500.0,0.0003589,12]
[356378319,1742343032448,-500.0,0.0003589,12]
[356378320,1742343032457,-1077.96,0.0003589,12]
[356378321,1742343032470,-1228.01,0.0003589,12]
[356378322,1742343032480,-500.0,0.0003589,12]
[356378323,1742343032491,-500.0,0.0003589,12]
[356378324,1742343032502,-550.76,0.0003589,12]
[356378325,1742343032512,-500.0,0.0003589,12]
[356378326,1742343032522,-500.0,0.0003589,12]
[356378327,1742343032533,-500.0,0.0003589,12]
[356378328,1742343032543,-4557.3411,0.00035964,2]
[356378329,1742343032552,-5369.6336,0.00035964,2]
[356378330,1742343032565,-892.7956,0.00035964,2]
[356378331,1742343032576,-500.0,0.00036063,12]
[356378332,1742343032588,-500.0,0.00036063,12]
[356378333,1742343032600,-500.0,0.00036063,12]
[356378334,1742343032611,-500.0,0.00036063,12]
[356378335,1742343032621,-542.22466116,0.00036063,12]
[356378336,1742343032632,-500.0,0.00036063,12]
[356378337,1742343032643,-500.0,0.00036063,12]
[356378338,1742343032654,-548.63,0.00036063,12]
[356378339,1742343032664,-500.0,0.00036063,12]
[356378340,1742343032674,-710.72,0.00036063,12]
[356378341,1742343032684,-500.0,0.00036063,12]
[356378342,1742343032694,-500.0,0.00036063,12]
[356378343,1742343032704,-1247.85,0.00036063,12]
[356378344,1742343032716,-741.74,0.00036063,12]
[356378345,1742343032727,-521.68900002,0.00036063,12]
[356378346,1742343032737,-500.0,0.00036063,12]
[356378347,1742343032747,-482.83053704,0.00036063,12]
[356378348,1742343032759,-500.0,0.00036063,12]
[356378349,1742343032770,-500.0,0.00036063,12]
[356378350,1742343032780,-500.0,0.00036063,12]
[356378351,1742343032791,-500.0,0.00036063,12]
[356378352,1742343032801,-500.0,0.00036063,12]
[356378353,1742343032812,-371.89653538,0.00036063,12]
[356378354,1742343032823,-500.0,0.00036063,12]
[356378355,1742343032835,-500.0,0.00036063,12]
[356378356,1742343032849,-500.0,0.00036063,12]
[356378357,1742343032859,-500.0,0.00036063,12]
[356378358,1742343032870,-500.0,0.00036063,12]
[356378359,1742343032880,-500.0,0.00036063,12]
[356378360,1742343032890,-500.0,0.00036063,12]
[356378361,1742343032900,-804.54,0.00036063,12]
[356378362,1742343032911,-500.0,0.00036063,12]
[356378363,1742343032921,-507.27732231,0.00036063,12]
[356378364,1742343032932,-500.0,0.00036063,12]
[356378365,1742343032942,-500.0,0.00036063,12]
[356378366,1742343032953,-315.3491625,0.00036063,12]
[356378367,1742343032963,-500.0,0.00036063,12]
[356378368,1742343032974,-881.84,0.00036063,12]
[356378369,1742343032988,-297.9431,0.00036064,2]
[356378370,1742343032999,-1162.4277,0.00036064,2]
[356378371,1742343033009,-4630.6669,0.00036064,2]
[356378372,1742343033020,-57372.3661,0.00036064,2]
[356378373,1742343033033,-19925.1136,0.00036064,2]
[356378374,1742343033044,-150.0,0.00036066,2]
[356378375,1742343033055,-294.3,0.00036151,2]
[356378376,1742343033066,-229.262,0.00036151,7]
[356378377,1742343033078,-500.0,0.00036164,12]
[356378378,1742343033090,-500.0,0.00036164,12]
[356378379,1742343033101,-500.0,0.00036164,12]
[356378380,1742343033111,-324.25731057,0.00036164,12]
[356378381,1742343033122,-693.44,0.00036164,12]
[356378382,1742343033132,-500.0,0.00036164,12]
[356378383,1742343033143,-580.36,0.00036164,12]
[356378384,1742343033154,-500.0,0.00036164,12]
[356378385,1742343033165,-500.0,0.00036164,12]
[356378386,1742343033175,-1077.96,0.00036164,12]
[356378387,1742343033186,-1228.01,0.00036164,12]
[356378388,1742343033198,-500.0,0.00036164,12]
[356378389,1742343033209,-500.0,0.00036164,12]
[356378390,1742343033221,-550.76,0.00036164,12]
[356378391,1742343033232,-500.0,0.00036164,12]
[356378392,1742343033243,-500.0,0.00036164,12]
[356378393,1742343033254,-500.0,0.00036164,12]
[356378394,1742343033267,-10000.0,0.00036164,2]
[356378395,1742343033278,-150.0,0.00036178,2]
[356378396,1742343033289,-581.0,0.000362,7]
[356378397,1742343033301,-164.65303725,0.00036238,2]
[356378398,1742343033312,-787.28,0.00036335,12]
[356378399,1742343033324,-817.01,0.00036335,12]
[356378400,1742343033337,-2684.66,0.00036335,12]
[356378401,1742343033350,-500.0,0.00036335,12]
[356378402,1742343033361,-12316.08,0.00036335,12]
[356378403,1742343033372,-1507.91,0.00036335,12]
[356378404,1742343033384,-500.0,0.00036335,12]
[356378405,1742343033395,-500.0,0.00036335,12]
[356378406,1742343033406,-2266.55,0.00036335,12]
[356378407,1742343033417,-1611.22,0.00036336,12]
[356378408,1742343033428,-729.74,0.00036336,12]
[356378409,1742343033444,-850.66,0.00036336,12]
[356378410,1742343033461,-4260.26,0.00036336,12]
[356378411,1742343033474,-500.0,0.00036336,12]
[356378412,1742343033486,-2983.43,0.00036336,12]
[356378413,1742343033498,-500.0,0.00036336,12]
[356378414,1742343033509,-533.06,0.00036336,12]
[356378415,1742343033520,-500.0,0.00036336,12]
[356378416,1742343033533,-500.0,0.00036337,12]
[356378417,1742343033546,-500.0,0.00036337,12]
[356378418,1742343033558,-606.95074795,0.00036337,12]
[356378419,1742343033571,-500.0,0.00036337,12]
[356378420,1742343033584,-500.0,0.00036337,12]
[356378421,1742343033595,-500.0,0.00036337,12]
[356378422,1742343033606,-500.0,0.00036337,12]
[356378423,1742343033617,-500.0,0.00036337,12]
[356378424,1742343033629,-500.0,0.00036337,12]
[356378425,1742343033641,-500.0,0.00036337,12]
[356378426,1742343033653,-548.63,0.00036337,12]
[356378427,1742343033664,-609.73882344,0.00036337,12]
[356378428,1742343033676,-500.0,0.00036337,12]
[356378429,1742343033688,-710.72,0.00036337,12]
[356378430,1742343033700,-500.0,0.00036337,12]
[356378431,1742343033710,-568.3,0.00036337,12]
[356378432,1742343033721,-500.0,0.00036337,12]
[356378433,1742343033732,-844.75,0.00036337,12]
[356378434,1742343033744,-1247.85,0.00036337,12]
[356378435,1742343033756,-1620.72,0.00036337,12]
[356378436,1742343033768,-898.31,0.00036337,12]
[356378437,1742343033779,-741.74,0.00036337,12]
[356378438,1742343033790,-500.0,0.00036337,12]
[356378439,1742343033800,-565.24,0.00036337,12]
[356378440,1742343033811,-500.0,0.00036337,12]
[356378441,1742343033822,-500.0,0.00036337,12]
[356378442,1742343033833,-500.0,0.00036337,2]
[356378443,1742343033843,-500.0,0.00036337,12]
[356378444,1742343033854,-500.0,0.00036337,12]
[356378445,1742343033865,-500.0,0.00036337,12]
[356378446,1742343033876,-500.0,0.00036337,12]
[356378447,1742343033887,-585.54,0.00036337,12]
[356378448,1742343033897,-500.0,0.00036337,12]
[356378449,1742343033916,-500.0,0.00036337,12]
[356378450,1742343033927,-394.58426802,0.00036337,12]
[356378451,1742343033938,-500.0,0.00036337,12]
[356378452,1742343033954,-500.0,0.00036337,12]
[356378453,1742343033967,-508.62674477,0.00036337,12]
[356378454,1742343033982,-500.0,0.00036337,12]
[356378455,1742343033997,-500.0,0.00036337,12]
[356378456,1742343034008,-500.0,0.00036337,12]
[356378457,1742343034019,-500.0,0.00036337,12]
[356378458,1742343034031,-500.0,0.00036337,12]
[356378459,1742343034043,-500.0,0.00036337,12]
[356378460,1742343034054,-500.0,0.00036337,12]
[356378461,1742343034067,-500.0,0.00036337,12]
[356378462,1742343034078,-500.0,0.00036337,12]
[356378463,1742343034089,-510.22188928,0.00036337,12]
[356378464,1742343034099,-500.0,0.00036337,12]
[356378465,1742343034110,-804.54,0.00036337,12]
[356378466,1742343034120,-500.0,0.00036337,12]
[356378467,1742343034130,-500.0,0.00036337,12]
[356378468,1742343034139,-500.0,0.00036337,12]
[356378469,1742343034149,-256.30515421,0.00036337,12]
[356378470,1742343034160,-500.0,0.00036337,12]
[356378471,1742343034170,-500.0,0.00036337,12]
[356378472,1742343034180,-500.0,0.00036337,12]
[356378473,1742343034191,-500.0,0.00036337,12]
[356378474,1742343034202,-500.0,0.00036337,12]
[356378475,1742343034215,-502.1958,0.00036337,12]
[356378476,1742343034226,-500.0,0.00036337,12]
[356378477,1742343034237,-500.0,0.00036337,12]
[356378478,1742343034249,-881.84,0.00036337,12]
[356378479,1742343034260,-307.92268033,0.00036337,12]
[356378480,1742343034273,-439.5967,0.00036338,2]
[356378481,1742343034284,-3068.3707,0.00036338,2]
[356378482,1742343034296,-11545.5045,0.00036338,2]
[356378483,1742343034307,-7419.7846,0.00036338,2]
[356378484,1742343034319,-1000.0,0.00036338,2]
[356378485,1742343034331,-2053.2476,0.00036338,2]
[356378486,1742343034344,-18837.3955004,0.00036418,3]
[356378487,1742343034354,-591.2026886,0.00036438,12]
[356378488,1742343034365,-500.0,0.00036438,12]
[356378489,1742343034376,-500.0,0.00036438,12]
[356378490,1742343034386,-693.44,0.00036438,12]
[356378491,1742343034397,-500.0,0.00036438,12]
[356378492,1742343034408,-580.36,0.00036438,12]
[356378493,1742343034418,-500.0,0.00036438,12]
[356378494,1742343034429,-500.0,0.00036438,12]
[356378495,1742343034439,-1077.96,0.00036438,12]
[356378496,1742343034449,-1228.01,0.00036438,12]
[356378497,1742343034459,-500.0,0.00036438,12]
[356378498,1742343034470,-500.0,0.00036438,12]
[356378499,1742343034480,-550.76,0.00036438,12]
[356378500,1742343034491,-500.0,0.00036438,12]
[356378501,1742343034502,-500.0,0.00036438,12]
[356378502,1742343034512,-500.0,0.00036438,12]
[356378503,1742343034522,-158.71428571,0.00036509,2]
[356378504,1742343034533,-2341.424813,0.00036511,8]
[356378505,1742343034543,-18837.3955004,0.000366,3]
[356378506,1742343034554,-18837.3955004,0.00036601,3]
[356378507,1742343034566,-787.28,0.00036609,12]
[356378508,1742343034577,-817.01,0.00036609,12]
[356378509,1742343034587,-2684.66,0.00036609,12]
[356378510,1742343034597,-522.71351361,0.00036609,12]
[356378511,1742343034609,-12316.08,0.00036609,12]
[356378512,1742343034619,-1507.91,0.00036609,12]
[356378513,1742343034630,-500.0,0.00036609,12]
[356378514,1742343034640,-500.0,0.00036609,12]
[356378515,1742343034652,-1611.22,0.0003661,12]
[356378516,1742343034662,-729.74,0.0003661,12]
[356378517,1742343034673,-850.66,0.0003661,12]
[356378518,1742343034683,-4260.26,0.0003661,12]
[356378519,1742343034694,-500.0,0.0003661,12]
[356378520,1742343034704,-2983.43,0.0003661,12]
[356378521,1742343034715,-500.0,0.0003661,12]
[356378522,1742343034725,-533.06,0.0003661,12]
[356378523,1742343034735,-500.0,0.0003661,12]
[356378524,1742343034746,-527.26681462,0.00036611,12]
[356378525,1742343034755,-500.0,0.00036611,12]
[356378526,1742343034765,-500.0,0.00036611,12]
[356378527,1742343034775,-356.27522696,0.00036611,12]
[356378528,1742343034785,-633.14963001,0.00036611,12]
[356378529,1742343034795,-500.0,0.00036611,12]
[356378530,1742343034805,-500.0,0.00036611,12]
[356378531,1742343034816,-548.63,0.00036611,12]
[356378532,1742343034826,-710.72,0.00036611,12]
[356378533,1742343034836,-522.57585787,0.00036611,12]
[356378534,1742343034846,-568.3,0.00036611,12]
[356378535,1742343034856,-500.0,0.00036611,12]
[356378536,1742343034866,-844.75,0.00036611,12]
[356378537,1742343034875,-1247.85,0.00036611,12]
[356378538,1742343034886,-1620.72,0.00036611,12]
[356378539,1742343034896,-898.31,0.00036611,12]
[356378540,1742343034923,-741.74,0.00036611,12]
[356378541,1742343034933,-627.50438977,0.00036611,12]
[356378542,1742343034943,-565.24,0.00036611,12]
[356378543,1742343034954,-638.4497568,0.00036611,12]
[356378544,1742343034964,-500.0,0.00036611,12]
[356378545,1742343034976,-500.0,0.00036611,12]
[356378546,1742343034986,-500.0,0.00036611,12]
[356378547,1742343035000,-500.0,0.00036611,12]
[356378548,1742343035011,-500.0,0.00036611,12]
[356378549,1742343035023,-585.54,0.00036611,12]
[356378550,1742343035033,-500.0,0.00036611,12]
[356378551,1742343035043,-166.61521556,0.00036611,12]
[356378552,1742343035054,-500.0,0.00036611,12]
[356378553,1742343035065,-500.0,0.00036611,12]
[356378554,1742343035075,-500.0,0.00036611,12]
[356378555,1742343035085,-500.0,0.00036611,12]
[356378556,1742343035095,-500.0,0.00036611,12]
[356378557,1742343035105,-500.0,0.00036611,12]
[356378558,1742343035115,-500.0,0.00036611,12]
[356378559,1742343035125,-508.13405008,0.00036611,12]
[356378560,1742343035135,-500.0,0.00036611,12]
[356378561,1742343035146,-500.0,0.00036611,12]
[356378562,1742343035157,-500.0,0.00036611,12]
[356378563,1742343035167,-500.0,0.00036611,12]
[356378564,1742343035178,-804.54,0.00036611,12]
[356378565,1742343035188,-500.0,0.00036611,12]
[356378566,1742343035198,-500.0,0.00036611,12]
[356378567,1742343035208,-500.0,0.00036611,12]
[356378568,1742343035220,-500.0,0.00036611,12]
[356378569,1742343035230,-500.0,0.00036611,12]
[356378570,1742343035240,-500.0,0.00036611,12]
[356378571,1742343035250,-500.0,0.00036611,12]
[356378572,1742343035260,-500.0,0.00036611,12]
[356378573,1742343035269,-500.0,0.00036611,12]
[356378574,1742343035279,-500.0,0.00036611,12]
[356378575,1742343035289,-881.84,0.00036611,12]
[356378576,1742343035299,-500.0,0.00036612,2]
[356378577,1742343035309,-504.16156244,0.00036673,5]
[356378578,1742343035319,-501.57357659,0.00036673,5]
[356378579,1742343035330,-150.37502792,0.00036673,5]
[356378580,1742343035339,-18837.3955004,0.00036692,3]
[356378581,1742343035350,-500.0,0.00036712,12]
[356378582,1742343035360,-500.0,0.00036712,12]
[356378583,1742343035370,-693.44,0.00036712,12]
[356378584,1742343035381,-500.0,0.00036712,12]
[356378585,1742343035391,-580.36,0.00036712,12]
[356378586,1742343035401,-500.0,0.00036712,12]
[356378587,1742343035411,-500.0,0.00036712,12]
[356378588,1742343035422,-1077.96,0.00036712,12]
[356378589,1742343035432,-1228.01,0.00036712,12]
[356378590,1742343035442,-500.0,0.00036712,12]
[356378591,1742343035452,-500.0,0.00036712,12]
[356378592,1742343035462,-550.76,0.00036712,12]
[356378593,1742343035473,-500.0,0.00036712,12]
[356378594,1742343035484,-523.87109498,0.00036712,12]
[356378595,1742343035497,-500.0,0.00036712,12]
[356378596,1742343035507,-10000.0,0.00036712,2]
[356378597,1742343035517,-156.05,0.00036862,2]
[356378598,1742343035527,-8560.30156687,0.00036865,3]
[356378599,1742343035543,-10277.09393353,0.00036865,3]
[356378600,1742343035553,-18837.3955004,0.00036875,3]
[356378601,1742343035563,-787.28,0.00036883,12]
[356378602,1742343035573,-817.01,0.00036883,12]
[356378603,1742343035584,-2684.66,0.00036883,12]
[356378604,1742343035594,-12316.08,0.00036883,12]
[356378605,1742343035605,-1507.91,0.00036883,12]
[356378606,1742343035615,-500.0,0.00036883,12]
[356378607,1742343035625,-500.0,0.00036883,12]
[356378608,1742343035635,-1611.22,0.00036884,12]
[356378609,1742343035645,-729.74,0.00036884,12]
[356378610,1742343035656,-850.66,0.00036884,12]
[356378611,1742343035666,-4260.26,0.00036884,12]
[356378612,1742343035676,-500.0,0.00036884,12]
[356378613,1742343035686,-2983.43,0.00036884,12]
[356378614,1742343035696,-500.0,0.00036884,12]
[356378615,1742343035705,-533.06,0.00036884,12]
[356378616,1742343035716,-500.0,0.00036884,12]
[356378617,1742343035726,-500.0,0.00036885,12]
[356378618,1742343035736,-500.0,0.00036885,12]
[356378619,1742343035746,-500.0,0.00036885,12]
[356378620,1742343035756,-500.0,0.00036885,12]
[356378621,1742343035766,-548.63,0.00036885,12]
[356378622,1742343035775,-710.72,0.00036885,12]
[356378623,1742343035785,-568.3,0.00036885,12]
[356378624,1742343035795,-500.0,0.00036885,12]
[356378625,1742343035805,-844.75,0.00036885,12]
[356378626,1742343035815,-1247.85,0.00036885,12]
[356378627,1742343035825,-1620.72,0.00036885,12]
[356378628,1742343035835,-898.31,0.00036885,12]
[356378629,1742343035845,-741.74,0.00036885,12]
[356378630,1742343035855,-565.24,0.00036885,12]
[356378631,1742343035865,-500.0,0.00036885,12]
[356378632,1742343035875,-500.0,0.00036885,12]
[356378633,1742343035885,-500.0,0.00036885,12]
[356378634,1742343035895,-500.0,0.00036885,12]
[356378635,1742343035905,-490.63285024,0.00036885,12]
[356378636,1742343035916,-585.54,0.00036885,12]
[356378637,1742343035927,-500.0,0.00036885,12]
[356378638,1742343035937,-504.95491571,0.00036885,12]
[356378639,1742343035947,-500.0,0.00036885,12]
[356378640,1742343036320,-500.0,0.00036885,12]
[356378641,1742343036330,-500.0,0.00036885,12]
[356378642,1742343036340,-500.0,0.00036885,12]
[356378643,1742343036349,-500.0,0.00036885,12]
[356378644,1742343036360,-500.0,0.00036885,12]
[356378645,1742343036370,-500.0,0.00036885,12]
[356378646,1742343036379,-500.0,0.00036885,12]
[356378647,1742343036389,-500.0,0.00036885,12]
[356378648,1742343036399,-500.0,0.00036885,12]
[356378649,1742343036408,-804.54,0.00036885,12]
[356378650,1742343036418,-500.0,0.00036885,12]
[356378651,1742343036428,-500.0,0.00036885,12]
[356378652,1742343036438,-503.70883418,0.00036885,12]
[356378653,1742343036447,-500.0,0.00036885,12]
[356378654,1742343036456,-602.88214067,0.00036885,12]
[356378655,1742343036465,-500.0,0.00036885,12]
[356378656,1742343036476,-500.0,0.00036885,12]
[356378657,1742343036486,-500.0,0.00036885,12]
[356378658,1742343036495,-500.0,0.00036885,12]
[356378659,1742343036505,-500.0,0.00036885,12]
[356378660,1742343036515,-881.84,0.00036885,12]
[356378661,1742343036524,-222.0,0.00036886,2]
[356378662,1742343036534,-7620.82,0.00036907,2]
[356378663,1742343036544,-4635.78414522,0.00036966,3]
[356378668,1742343037469,-325.8034344,0.00036511,2]
[356378669,1742343037479,-14201.61135518,0.00036966,3]
[356378670,1742343037489,-152.05,0.00036966,2]
[356378671,1742343037499,-19041.2704123,0.00036976,3]
[356378672,1742343037509,-500.0,0.00036986,12]
[356378673,1742343037519,-500.0,0.00036986,12]
[356378674,1742343037529,-693.44,0.00036986,12]
[356378675,1742343037539,-500.0,0.00036986,12]
[356378676,1742343037548,-580.36,0.00036986,12]
[356378677,1742343037558,-500.0,0.00036986,12]
[356378678,1742343037568,-500.0,0.00036986,12]
[356378679,1742343037578,-1077.96,0.00036986,12]
[356378680,1742343037588,-1228.01,0.00036986,12]
[356378681,1742343037597,-500.0,0.00036986,12]
[356378682,1742343037606,-500.0,0.00036986,12]
[356378683,1742343037616,-550.76,0.00036986,12]
[356378684,1742343037625,-500.0,0.00036986,12]
[356378685,1742343037634,-500.0,0.00036986,12]
[356378686,1742343037644,-800.0,0.00037,2]
[356378687,1742343037654,-2019.0,0.00037,117]
[356378688,1742343037664,-150.0,0.00037073,2]
[356378689,1742343037673,-2301.65860432,0.00037129,3]
[356378690,1742343037685,-8136.54603924,0.00037129,3]
[356378691,1742343037696,-557.91029838,0.00037129,3]
[356378692,1742343037709,-7841.28055846,0.00037129,3]
[356378693,1742343037719,-2266.55,0.00037138,12]
[356378694,1742343037728,-9148.70649088,0.00037138,3]
[356378695,1742343037740,-551.58987258,0.00037138,3]
[356378696,1742343037752,-1244.55039923,0.00037138,3]
[356378700,1742343039818,-904.80804561,0.00037138,3]
[356378701,1742343039830,-1276.11229664,0.00037138,3]
[356378702,1742343039870,-457.07846069,0.00037138,3]
[356378703,1742343039927,-5458.42484667,0.00037138,3]
[356378704,1742343039937,-12857.98848716,0.00037148,3]
[356378705,1742343039949,-5979.40701324,0.00037148,3]
[356378706,1742343039959,-11787.38821967,0.00037148,3]
[356378726,1742343042646,-1061.29224118,0.00036335,12]
[356378743,1742343045638,-348.52775882,0.00036335,12]
[356378744,1742343045648,-1409.82,0.00036609,12]
[356378745,1742343045659,-1409.82,0.00036883,12]
[356378746,1742343045668,-2119.76071176,0.00037148,3]
[356378747,1742343045743,-781.750005,0.00037148,3]
[356378748,1742343045756,-4352.37147587,0.00037148,3]
[356378749,1742343045766,-18837.3955004,0.00037149,3]
[356378750,1742343045775,-15652.69988509,0.00037149,3]
[356378751,1742343045810,-155.83922246,0.00037149,3]
[356378811,1742344231660,-272.80967872,9.77e-05,2]
[356378812,1742344231718,-71.56190886,9.77e-05,2]
[356378813,1742344231728,-250.0,9.871e-05,2]
[356378814,1742344231738,-116.11581014,9.948e-05,2]
[356378815,1742344231995,-133.88418986,9.948e-05,2]
[356378816,1742344232006,-371.50470524,9.973e-05,2]
[356378817,1742344232016,-300.0,9.999e-05,2]
[356378818,1742344232027,-580.58912518,0.0001,2]
[356378863,1742344232801,-23179.84953373,0.0001,2]
[356378864,1742344232811,-19125.24884959,0.0001,2]
[356378865,1742344232911,-686.08834278,0.0001,2]
[356378866,1742344232932,-308.42633695,0.0001,2]
[356378869,1742344237567,-1463.88406368,0.0001,2]
[356378870,1742344237622,-9247.16874785,0.0001,2]
[356378871,1742344237634,-4891.75415988,0.0001,2]
[356378872,1742344237679,-531.99999998,0.0001,2]
[356378873,1742344237690,-94745.1799002,0.0001,2]
[356378874,1742344237702,-1025.15144011,0.0001,2]
[356378883,1742344239760,-213.185076,9.95e-05,2]
[356378884,1742344239770,-74.89491784,0.0001,2]
[356378885,1742344239815,-487.89012847,0.0001,2]
[356378886,1742344239979,-3094.86716903,0.0001,2]
[356378887,1742344239992,-1396.47468007,0.0001,2]
[356378888,1742344240034,-889.375035,0.0001,2]
[356378889,1742344240092,-573.21934277,0.0001,2]
[356378890,1742344240147,-1395.14571064,0.0001,2]
[356378891,1742344240159,-479.31121115,0.0001,2]